bitfinex-derivatives/quotes_ETHF0:USTF0_20250104
["timestamp","ask_amount","ask_price","bid_price","bid_amount"]
[1735963185817,0.439,3598.0,3597.9,12.22919553]
[1735963186522,3.2809476,3598.1,3598.0,0.27802]
[1735963187524,2.18700552,3598.1,3598.0,4.66374506]
[1735963188623,3.05580552,3598.2,3598.1,0.27802]
[1735963188832,3.05580552,3598.2,3598.1,1.28357296]
[1735963190424,0.8688,3598.2,3598.1,12.22543726]
[1735963192933,3.0556433,3598.2,3598.1,12.22543726]
[1735963199127,0.8688,3598.2,3598.1,12.22543726]
[1735963201840,3.05539077,3598.2,3598.1,12.22543726]
[1735963202640,3.05539077,3598.2,3598.1,11.2198843]
[1735963202839,3.05539077,3598.2,3598.1,10.9418643]
[1735963203136,3.33340077,3598.2,3598.1,10.9418643]
[1735963203934,4.33895373,3598.2,3598.1,10.9418643]
[1735963204135,9.33895373,3598.2,3598.1,9.0558643]
[1735963204343,8.33340077,3598.2,3598.1,9.0558643]
[1735963204641,7.2914495,3598.2,3597.8,4.3729822]
[1735963204836,1.28358296,3597.9,3597.8,1.6469822]
[1735963205340,6.70128296,3597.9,3597.8,1.6469822]
[1735963205841,0.69573,3597.9,3597.8,1.6469822]
[1735963206042,0.27805,3597.8,3597.0,3.6211]
[1735963206344,0.27805,3597.7,3597.5,1.00555296]
[1735963206744,0.27806,3597.6,3597.2,0.27808]
[1735963206936,0.27808,3597.4,3597.1,1.069]
[1735963207144,0.69498,3597.3,3597.1,1.069]
[1735963207436,0.4169,3597.3,3597.0,1.00555296]
[1735963207638,3.48589,3597.2,3596.8,1.00555296]
[1735963207945,0.27809,3597.2,3596.8,0.27811]
[1735963208137,0.9012,3597.1,3596.7,1.34712]
[1735963208443,0.9012,3597.1,3596.6,3.2078]
[1735963208444,1.00555296,3596.9,3596.6,3.2078]
[1735963208645,1.00555296,3596.7,3596.3,1.069]
[1735963208938,0.71134,3596.6,3596.3,1.069]
[1735963209241,0.71134,3596.6,3596.2,1.00555296]
[1735963209438,1.41975296,3596.5,3595.9,1.78698]
[1735963209638,3.656,3596.4,3596.3,1.00555296]
[1735963209842,0.4332,3596.6,3596.3,1.00555296]
[1735963210044,0.85048264,3596.6,3596.0,0.27818]
[1735963210249,0.69234,3596.5,3596.2,1.00555296]
[1735963210540,0.27815,3596.4,3596.2,1.00555296]
[1735963210738,0.4142,3596.5,3596.2,1.00555296]
[1735963210944,0.4142,3596.5,3596.4,1.00555296]
[1735963211546,0.4332,3596.6,3596.4,1.00555296]
[1735963211843,2.61385652,3596.6,3596.5,0.4185]
[1735963212051,2.61385652,3596.6,3596.4,1.00555296]
[1735963212241,0.145,3596.5,3596.4,1.00555296]
[1735963212546,1.3666,3596.5,3596.4,1.00555296]
[1735963212946,1.589,3596.5,3596.4,1.00555296]
[1735963213348,1.589,3596.5,3596.1,1.069]
[1735963213349,0.27815,3596.4,3596.2,1.00555296]
[1735963213544,0.27815,3596.4,3596.1,1.069]
[1735963213752,4.21335296,3596.4,3595.8,0.4154]
[1735963213946,0.27817,3596.2,3595.9,1.00555296]
[1735963214250,3.2078,3596.4,3595.8,0.4154]
[1735963214445,0.4145,3596.1,3595.8,0.4154]
[1735963215350,0.4145,3596.1,3595.9,0.4377]
[1735963215748,0.4145,3596.1,3595.9,2.57492465]
[1735963216147,0.4145,3596.1,3595.9,0.4377]
[1735963216354,0.4145,3596.1,3595.9,2.57492465]
[1735963217255,0.4145,3596.1,3595.9,0.4377]
[1735963217750,3.48595,3596.4,3595.9,2.57492465]
[1735963218150,0.27816,3596.3,3595.9,2.57492465]
[1735963218451,3.2078,3596.4,3595.9,2.57492465]
[1735963218953,0.27819,3595.9,3595.8,0.4154]
[1735963219644,0.8662,3595.9,3595.7,1.082]
[1735963219850,1.3138,3595.9,3595.5,1.082]
[1735963220052,0.27821,3595.6,3595.5,1.082]
[1735963220753,0.8662,3595.9,3595.5,1.082]
[1735963220952,0.8662,3595.9,3595.6,2.13722465]
[1735963221148,1.14439,3595.9,3595.6,2.13722465]
[1735963221452,0.27819,3595.8,3595.6,2.13722465]
[1735963222552,1.14439,3595.9,3595.6,2.13722465]
[1735963222746,0.27816,3596.3,3595.6,5.34502465]
[1735963222948,0.27816,3596.3,3596.0,2.13722465]
[1735963223153,0.27816,3596.3,3596.1,0.8788]
[1735963223553,3.92505,3596.4,3596.1,0.8788]
[1735963223743,3.6469,3596.4,3596.1,0.8788]
[1735963224054,1.8114,3596.5,3596.3,2.41538465]
[1735963224255,1.8114,3596.5,3596.3,2.13722465]
[1735963224447,1.8114,3596.5,3596.3,2.58542465]
[1735963224649,1.8114,3596.5,3596.4,3.48595]
[1735963224858,0.8895,3596.6,3596.5,0.27814]
[1735963225955,1.1422,3596.6,3596.5,0.27814]
[1735963226560,1.1422,3596.6,3596.5,1.082]
[1735963228150,1.1422,3596.6,3596.4,3.2078]
[1735963228354,1.1422,3596.6,3596.1,0.8788]
[1735963228554,0.27815,3596.4,3596.2,1.082]
[1735963228853,0.27816,3596.3,3596.1,0.8788]
[1735963229054,0.27816,3596.3,3596.2,1.082]
[1735963229557,0.8438,3596.5,3596.2,1.082]
[1735963229759,0.27815,3596.4,3596.2,1.082]
[1735963230066,0.2527,3596.6,3596.2,1.36016]
[1735963230251,0.2527,3596.6,3596.2,1.082]
[1735963230751,0.53084,3596.6,3596.2,1.082]
[1735963231553,0.2527,3596.6,3596.2,1.082]
[1735963232062,0.27814,3596.5,3596.2,1.082]
[1735963232957,1.41984,3596.6,3596.1,0.71827]
[1735963233262,1.41984,3596.6,3596.3,1.082]
[1735963233454,1.1417,3596.6,3596.3,1.082]
[1735963233653,1.1417,3596.6,3596.1,0.4401]
[1735963233855,0.27816,3596.2,3596.1,0.4401]
[1735963234159,2.13722465,3596.4,3595.8,1.5139]
[1735963234457,1.60368,3596.1,3595.9,0.4362]
[1735963238660,1.3255,3596.1,3595.9,0.4362]
[1735963240060,1.60367,3596.1,3595.9,0.4362]
[1735963240258,1.3255,3596.1,3595.9,0.4362]
[1735963242563,1.3255,3596.1,3595.9,0.71439]
[1735963242766,0.27817,3596.2,3595.9,0.71439]
[1735963243267,0.2224,3596.1,3595.9,0.71439]
[1735963244067,0.2224,3596.1,3596.0,1.104]
[1735963246060,0.50057,3596.1,3596.0,1.104]
[1735963246462,0.50057,3596.1,3595.8,0.27819]
[1735963246667,0.2224,3596.1,3595.8,0.27819]
[1735963246867,0.2224,3596.1,3595.8,1.38219]
[1735963247263,0.50057,3596.1,3595.8,1.38219]
[1735963248464,0.50057,3596.1,3595.8,1.104]
[1735963248764,0.2224,3596.1,3595.7,0.4417]
[1735963248966,0.27819,3595.9,3595.7,1.104]
[1735963249262,0.8267,3595.8,3595.7,1.104]
[1735963249469,1.2694,3595.8,3595.7,1.104]
[1735963251162,1.2997,3595.8,3595.7,1.104]
[1735963251558,1.2997,3595.8,3595.6,4.3118]
[1735963251559,1.5779,3595.8,3595.6,4.3118]
[1735963251773,0.2782,3595.7,3595.6,3.2078]
[1735963252570,0.27822,3595.5,3595.2,1.104]
[1735963252766,0.27822,3595.5,3595.2,1.38224]
[1735963253072,0.27822,3595.5,3595.2,1.104]
[1735963253268,0.27822,3595.5,3595.1,0.27824]
[1735963253471,0.27823,3595.4,3595.2,1.104]
[1735963253774,1.2586,3595.3,3595.2,1.104]
[1735963255468,1.53683,3595.3,3595.2,1.104]
[1735963258474,1.75933,3595.3,3595.2,1.104]
[1735963259176,1.4811,3595.3,3595.2,1.104]
[1735963260572,2.3694,3595.3,3595.2,1.104]
[1735963263384,2.3997,3595.3,3595.2,1.104]
[1735963266079,2.67793,3595.3,3595.2,1.104]
[1735963270884,2.3997,3595.3,3595.2,1.104]
[1735963275278,1.1411,3595.3,3595.2,1.104]
[1735963276188,1.41933,3595.3,3595.2,1.104]
[1735963276589,1.41933,3595.3,3595.1,0.8812]
[1735963276889,1.41933,3595.3,3595.1,1.9772]
[1735963277088,1.41933,3595.3,3595.1,2.25545]
[1735963278388,1.1411,3595.3,3595.1,2.25545]
[1735963279477,1.41933,3595.3,3595.1,2.25545]
[1735963281290,0.27824,3595.2,3595.1,1.096]
[1735963281484,1.15054,3595.2,3595.1,1.096]
[1735963282088,0.8723,3595.2,3595.1,1.37425]
[1735963282792,1.759,3595.2,3595.1,1.37425]
[1735963283593,1.9815,3595.2,3595.1,1.37425]
[1735963284292,1.9815,3595.2,3595.1,1.096]
[1735963284489,1.9815,3595.2,3595.1,1.37425]
[1735963285595,1.9815,3595.2,3595.1,1.096]
[1735963288390,1.9815,3595.2,3595.0,2.80177106]
[1735963288592,1.9815,3595.2,3595.0,2.52352106]
[1735963288794,1.9815,3595.2,3595.1,0.27825]
[1735963289488,2.0118,3595.2,3595.1,0.27825]
[1735963290498,2.29004,3595.2,3595.0,2.52352106]
[1735963290698,2.0118,3595.2,3595.1,0.27825]
[1735963291697,2.0118,3595.2,3595.0,2.80177106]
[1735963291895,2.0118,3595.2,3595.1,0.27825]
[1735963292191,2.0118,3595.2,3594.9,6.54843898]
[1735963292390,1.00612106,3595.1,3594.9,6.54843898]
[1735963292697,0.27826,3595.0,3594.9,6.54843898]
[1735963294692,0.27826,3595.0,3594.7,2.52352106]
[1735963294693,0.69571912,3595.0,3594.7,2.52352106]
[1735963295699,3.28292922,3594.8,3594.7,2.52352106]
[1735963296198,3.69552922,3594.8,3594.7,2.52352106]
[1735963296697,3.69552922,3594.8,3594.7,2.80180106]
[1735963296897,3.69552922,3594.8,3594.7,1.42752106]
[1735963297802,4.85919922,3594.8,3594.7,1.42752106]
[1735963298098,4.58092922,3594.8,3594.7,1.42752106]
[1735963299698,4.58092922,3594.8,3594.6,6.54843898]
[1735963299898,0.72248,3594.7,3594.6,6.54843898]
[1735963300103,0.27829,3594.6,3594.5,6.54843898]
[1735963301802,5.00133054,3594.6,3594.2,1.5231]
[1735963301998,0.2783,3594.4,3594.2,1.096]
[1735963302307,0.27831,3594.4,3594.2,1.096]
[1735963302503,0.4424,3594.3,3594.1,1.00612106]
[1735963302702,0.4446,3594.2,3594.1,1.00612106]
[1735963303102,0.4446,3594.2,3594.1,0.27833]
[1735963303405,0.4446,3594.2,3594.1,1.28445106]
[1735963306616,2.18635677,3594.4,3594.1,1.00612106]
[1735963306806,2.18635677,3594.4,3594.3,1.28443106]
[1735963307019,2.18635677,3594.4,3594.3,2.37343106]
[1735963307509,2.18635677,3594.4,3594.3,5.58123106]
[1735963308712,0.2225,3594.6,3594.3,5.58123106]
[1735963308906,0.2225,3594.6,3594.5,1.00612106]
[1735963309113,0.50079,3594.6,3594.5,1.00612106]
[1735963309310,0.50079,3594.6,3594.4,0.4427]
[1735963309512,0.4099,3594.5,3594.4,0.4427]
[1735963310606,0.6882,3594.5,3594.4,1.5317]
[1735963311611,1.69432106,3594.5,3594.4,1.089]
[1735963311812,0.2783,3594.4,3594.1,1.36732]
[1735963312014,1.1497,3594.4,3594.2,0.4475]
[1735963312614,0.8714,3594.4,3594.2,0.4475]
[1735963312815,1.14971,3594.4,3594.2,0.4475]
[1735963313403,0.8714,3594.4,3594.2,0.4475]
[1735963313814,1.14971,3594.4,3594.2,0.4475]
[1735963314014,4.21392106,3594.3,3593.7,6.54843898]
[1735963314214,1.00612106,3593.9,3593.7,7.63743898]
[1735963314413,1.14215,3593.8,3593.7,6.54843898]
[1735963314606,1.55795,3593.8,3593.7,6.54843898]
[1735963315010,4.76575,3593.8,3593.7,4.66243898]
[1735963316214,6.90639755,3593.8,3593.7,4.66243898]
[1735963316517,10.32520502,3593.8,3593.2,0.27839]
[1735963316710,0.27838,3593.5,3593.2,0.27839]
[1735963317109,10.32520502,3593.8,3593.1,0.4261]
[1735963317309,0.27838,3593.4,3593.2,0.27839]
[1735963317718,0.4325,3593.3,3593.2,0.27839]
[1735963318112,0.4325,3593.3,3593.1,0.4261]
[1735963318422,0.4325,3593.3,3593.1,0.7045]
[1735963318915,0.71089,3593.3,3593.1,0.4261]
[1735963319118,0.4263,3593.2,3593.1,0.4261]
[1735963319915,0.4263,3593.2,3593.1,0.7045]
[1735963320221,0.6489,3593.2,3593.1,0.7045]
[1735963320518,0.6489,3593.2,3593.1,0.4261]
[1735963320722,0.6792,3593.2,3593.1,0.4261]
[1735963323320,1.1188,3593.2,3593.1,0.4261]
[1735963323524,1.1188,3593.2,3593.1,0.7045]
[1735963323715,0.6792,3593.2,3593.1,0.7045]
[1735963323916,0.6792,3593.2,3593.1,0.4261]
[1735963324423,1.5614,3593.2,3593.1,0.4261]
[1735963324616,1.5614,3593.2,3593.1,0.7045]
[1735963325011,1.5614,3593.2,3593.1,0.4261]
[1735963325212,1.5614,3593.2,3593.1,0.7045]
[1735963326120,1.1351,3593.2,3593.1,0.7045]
[1735963327721,1.1351,3593.2,3593.1,0.4261]
[1735963328422,0.27842,3592.9,3592.6,1.089]
[1735963328623,0.417,3592.8,3592.6,1.5299]
[1735963328822,0.8615,3592.8,3592.6,1.5299]
[1735963329015,0.8615,3592.8,3592.6,0.4409]
[1735963329218,0.8615,3592.8,3592.6,1.5299]
[1735963330719,0.8615,3592.8,3592.6,1.80834]
[1735963331021,0.8615,3592.8,3592.6,1.5299]
[1735963331221,0.8615,3592.8,3592.6,1.80834]
[1735963331523,0.8615,3592.8,3592.6,1.5299]
[1735963331724,0.8615,3592.8,3592.6,1.80834]
[1735963331919,0.8615,3592.8,3592.6,0.71934]
[1735963332119,0.71311,3593.1,3592.6,1.5259]
[1735963332422,0.71311,3593.1,3592.7,0.27843]
[1735963333126,0.4347,3593.1,3592.7,0.27843]
[1735963333329,0.27841,3593.0,3592.7,0.27843]
[1735963333520,0.71311,3593.1,3592.6,1.5259]
[1735963334224,1.5318,3593.2,3592.6,1.5259]
[1735963334225,1.1048,3593.2,3593.1,0.2784]
[1735963334422,2.18095793,3593.7,3593.6,0.27836]
[1735963334625,2.18095793,3593.7,3593.6,1.36336]
[1735963334824,2.21125793,3593.7,3593.6,1.085]
[1735963335129,2.21125793,3593.7,3593.6,1.36336]
[1735963335326,2.21125793,3593.7,3593.6,1.085]
[1735963335526,0.0303,3593.7,3593.6,1.36336]
[1735963335730,0.2529,3593.7,3593.6,1.36336]
[1735963336829,0.2529,3593.7,3593.6,0.27836]
[1735963337128,0.2529,3593.7,3593.6,1.36336]
[1735963337321,0.2529,3593.7,3593.6,0.27836]
[1735963337520,0.2529,3593.7,3593.5,1.085]
[1735963338028,0.2529,3593.7,3593.3,4.2928]
[1735963338029,0.8397,3593.6,3593.3,4.2928]
[1735963338232,0.27838,3593.4,3592.9,0.4177]
[1735963338427,0.4277,3593.3,3593.0,1.085]
[1735963338729,0.2784,3593.1,3593.0,1.085]
[1735963340929,0.4277,3593.3,3593.0,1.085]
[1735963341119,0.2784,3593.2,3593.0,1.085]
[1735963341520,0.4277,3593.3,3593.0,1.085]
[1735963342132,0.4277,3593.3,3593.2,0.2784]
[1735963342326,2.18095793,3593.6,3593.5,0.27837]
[1735963342725,3.4607,3593.7,3593.2,0.4146]
[1735963343030,3.4607,3593.7,3593.6,0.27836]
[1735963343224,3.4607,3593.7,3593.2,0.4146]
[1735963343532,3.4607,3593.7,3593.5,0.27837]
[1735963344131,0.2529,3593.7,3593.5,0.27837]
[1735963344430,0.2529,3593.7,3593.2,0.4146]
[1735963344622,0.53126,3593.7,3593.4,0.27838]
[1735963345024,0.2529,3593.7,3593.4,0.27838]
[1735963345325,0.53126,3593.7,3593.2,0.4146]
[1735963345527,0.2529,3593.7,3593.5,0.27837]
[1735963346331,0.2529,3593.7,3593.4,0.27838]
[1735963346534,0.2529,3593.7,3593.3,0.27838]
[1735963346734,0.4158,3593.6,3593.3,0.27838]
[1735963347139,0.69417,3593.6,3593.2,3.48619]
[1735963347331,0.69417,3593.6,3593.2,3.2078]
[1735963347533,0.4158,3593.6,3593.3,0.27839]
[1735963348034,0.4158,3593.6,3593.2,3.2078]
[1735963348235,0.4158,3593.6,3593.3,0.27838]
[1735963348639,0.4158,3593.6,3593.4,1.085]
[1735963348937,0.4158,3593.6,3593.5,0.27837]
[1735963349338,0.4158,3593.6,3593.4,1.36338]
[1735963349541,0.4158,3593.6,3593.4,1.36337]
[1735963350629,0.4158,3593.6,3593.5,0.27837]
[1735963351140,0.4158,3593.6,3593.4,1.36338]
[1735963351341,0.69417,3593.6,3593.4,1.085]
[1735963351636,0.4158,3593.6,3593.4,1.36338]
[1735963352535,0.4158,3593.6,3593.4,1.085]
[1735963352740,0.4158,3593.6,3593.4,1.36338]
[1735963353042,0.0303,3593.7,3593.4,1.085]
[1735963353259,0.0303,3593.7,3593.5,0.27837]
[1735963353544,0.0303,3593.7,3593.4,1.085]
[1735963353843,0.2226,3593.6,3593.4,1.085]
[1735963354044,0.2226,3593.6,3593.5,0.27837]
[1735963354736,0.2226,3593.6,3593.4,1.36338]
[1735963354943,0.2226,3593.6,3593.5,0.27837]
[1735963355141,0.2226,3593.6,3593.4,1.36337]
[1735963356645,0.2226,3593.6,3593.5,0.27837]
[1735963356849,0.2226,3593.6,3593.4,1.085]
[1735963357036,0.2226,3593.6,3593.4,1.36338]
[1735963358140,0.0303,3593.5,3593.4,1.36338]
[1735963359945,0.0303,3593.5,3593.4,7.86235158]
[1735963360146,0.0303,3593.5,3593.4,6.77735158]
[1735963360442,0.0303,3593.5,3593.4,7.86235158]
[1735963361238,0.0303,3593.5,3593.4,7.5481535]
[1735963361440,0.0303,3593.5,3593.4,5.40750595]
[1735963361642,0.0303,3593.5,3593.4,5.40250595]
[1735963362548,0.0303,3593.5,3593.4,5.12412595]
[1735963363142,0.0303,3593.5,3593.4,1.08]
[1735963363948,0.0303,3593.5,3593.4,1.35838]
[1735963364141,0.0303,3593.5,3593.4,1.08]
[1735963365542,0.0303,3593.5,3593.3,4.37195782]
[1735963365740,0.30867,3593.5,3593.4,1.08]
[1735963366247,0.30867,3593.5,3593.3,4.37195782]
[1735963366248,0.27838,3593.4,3593.3,5.45195782]
[1735963367255,2.45933793,3593.4,3593.3,1.08]
[1735963368346,2.18095793,3593.4,3593.3,1.08]
[1735963368945,2.45933793,3593.4,3593.3,1.08]
[1735963374945,2.68193793,3593.4,3593.3,1.08]
[1735963376753,0.27841,3593.0,3592.9,4.37195782]
[1735963376950,2.40355793,3593.4,3592.8,5.45195782]
[1735963376951,0.27842,3592.9,3592.8,5.45195782]
[1735963378549,3.55795515,3592.9,3592.8,1.08]
[1735963378746,3.27953515,3592.9,3592.4,8.30250782]
[1735963378943,0.27844,3592.6,3592.5,1.08]
[1735963380849,0.4338,3592.6,3592.5,1.08]
[1735963381247,2.63509268,3592.7,3592.5,1.35845]
[1735963381849,2.46332268,3592.8,3592.5,1.08]
[1735963383049,0.27844,3592.7,3592.5,1.08]
[1735963383553,0.27844,3592.6,3592.5,1.08]
[1735963385260,0.30884,3592.6,3592.5,1.08]
[1735963385749,0.0304,3592.6,3592.5,1.08]
[1735963386452,0.30884,3592.6,3592.5,1.08]
[1735963387653,0.0304,3592.6,3592.5,1.08]
[1735963392565,0.30884,3592.6,3592.5,1.08]
[1735963392757,0.0304,3592.6,3592.5,1.08]
[1735963393359,0.30884,3592.6,3592.5,1.08]
[1735963394058,0.0304,3592.6,3592.4,3.6521]
[1735963394358,0.4288,3592.5,3592.4,3.6521]
[1735963394558,0.4288,3592.5,3592.4,3.93056]
[1735963395075,0.4288,3592.5,3592.4,3.6521]
[1735963396358,0.6514,3592.5,3592.4,3.6521]
[1735963396863,0.6514,3592.5,3592.4,3.93056]
[1735963398363,0.6514,3592.5,3592.4,3.6521]
[1735963398960,0.6514,3592.5,3592.4,3.93056]
[1735963399968,0.6514,3592.5,3592.4,3.6521]
[1735963400462,0.6514,3592.5,3592.4,3.93056]
[1735963401470,0.6818,3592.5,3592.4,3.93056]
[1735963402464,0.253,3592.5,3592.4,3.93056]
[1735963405566,0.253,3592.5,3592.4,3.6521]
[1735963405762,0.253,3592.5,3592.4,3.93056]
[1735963413077,2.43789268,3592.5,3592.4,3.93056]
[1735963413467,3.44560266,3592.5,3592.2,4.37195782]
[1735963413668,1.28617998,3592.3,3592.2,4.37195782]
[1735963414271,1.00770998,3592.3,3592.2,4.37195782]
[1735963414777,4.70499783,3592.3,3592.1,0.4463]
[1735963414974,4.70499783,3592.3,3592.1,0.72478]
[1735963415464,4.70499783,3592.3,3592.1,0.4463]
[1735963415669,4.98346783,3592.3,3592.1,0.4463]
[1735963416268,2.18575571,3592.2,3592.1,0.72478]
[1735963418271,2.18575571,3592.2,3592.1,0.4463]
[1735963418676,2.18575571,3592.2,3592.1,0.72478]
[1735963420173,3.69728707,3592.3,3592.1,0.72478]
[1735963420871,3.69728707,3592.3,3592.1,0.4463]
[1735963421074,3.69728707,3592.3,3592.1,0.72478]
[1735963421577,3.27953515,3592.3,3592.1,0.72478]
[1735963422466,3.27953515,3592.3,3592.2,0.27847]
[1735963422675,3.27953515,3592.3,3592.1,0.72478]
[1735963422876,2.18756127,3592.2,3592.1,5.09673782]
[1735963423667,2.41026127,3592.2,3592.1,5.09673782]
[1735963425874,2.41026127,3592.2,3592.1,4.81825782]
[1735963426878,2.81966127,3592.2,3592.1,4.81825782]
[1735963427969,2.81966127,3592.2,3592.1,5.09673782]
[1735963428177,0.6321,3592.2,3592.1,5.09673782]
[1735963428579,0.6321,3592.2,3592.1,4.81825782]
[1735963431777,0.91057,3592.2,3592.1,4.37195782]
[1735963432886,0.94097,3592.2,3592.1,4.37195782]
[1735963434033,1.35875623,3592.2,3592.0,1.078]
[1735963435293,2.18754419,3592.1,3592.0,5.44995782]
[1735963435500,2.46602419,3592.1,3592.0,5.44995782]
[1735963436389,3.55979629,3592.1,3592.0,1.078]
[1735963436590,3.28131629,3592.1,3592.0,1.078]
[1735963437790,0.94098,3592.2,3592.0,5.10039434]
[1735963438193,0.94098,3592.2,3592.0,6.10822478]
[1735963438783,1.67033044,3592.2,3592.0,4.02239434]
[1735963439191,0.94098,3592.2,3592.0,4.02239434]
[1735963439389,2.18736464,3592.1,3591.9,6.56027446]
[1735963439586,2.46584464,3592.1,3591.9,6.56027446]
[1735963439990,2.18736464,3592.1,3591.9,6.56027446]
[1735963440199,1.28632044,3592.0,3591.9,6.56027446]
[1735963440684,1.28632044,3592.0,3591.9,4.37928615]
[1735963442802,1.28632044,3592.0,3591.7,6.56027446]
[1735963442803,1.70415114,3592.0,3591.7,0.27851]
[1735963443097,1.1111,3591.9,3591.7,0.27851]
[1735963443498,0.4496,3591.8,3591.7,0.27851]
[1735963444198,2.63653983,3591.8,3591.7,0.27851]
[1735963444599,2.63653983,3591.8,3591.6,5.38711659]
[1735963444902,2.91503983,3591.8,3591.6,5.66563659]
[1735963445199,2.91503983,3591.8,3591.6,1.28635044]
[1735963445505,2.46543983,3591.8,3591.6,1.28635044]
[1735963445799,2.91503983,3591.8,3591.6,1.28635044]
[1735963445993,2.63653983,3591.8,3591.6,1.28635044]
[1735963446201,2.91504983,3591.8,3591.6,1.28635044]
[1735963446896,2.91504983,3591.8,3591.6,1.00783044]
[1735963449097,2.18693983,3591.7,3591.6,1.00783044]
[1735963449795,2.40963983,3591.7,3591.6,1.00783044]
[1735963453991,2.44003983,3591.7,3591.6,1.00783044]
[1735963455099,2.71854983,3591.7,3591.6,1.00783044]
[1735963455498,2.71854983,3591.7,3591.5,1.4854]
[1735963457296,2.44003983,3591.7,3591.6,1.00783044]
[1735963457502,0.2531,3591.7,3591.6,1.28635044]
[1735963457708,0.2531,3591.7,3591.6,1.00783044]
[1735963457709,3.53350974,3591.7,3591.6,1.00783044]
[1735963459014,0.2531,3591.7,3591.6,1.00783044]
[1735963459513,0.53161,3591.7,3591.6,1.00783044]
[1735963460308,2.43944328,3591.7,3591.6,1.00783044]
[1735963460913,2.71796328,3591.7,3591.5,1.76393]
[1735963461410,0.27852,3591.6,3591.5,1.4854]
[1735963461605,0.72702,3591.6,3591.5,0.4124]
[1735963461806,2.91336328,3591.6,3591.5,1.4854]
[1735963462009,2.91336328,3591.6,3591.5,0.4124]
[1735963462211,2.91336328,3591.6,3591.5,1.4854]
[1735963463413,0.72702,3591.6,3591.5,1.4854]
[1735963463810,0.27854,3591.4,3591.3,4.37928615]
[1735963464015,1.28637044,3591.4,3591.3,4.37928615]
[1735963465217,0.27855,3591.2,3590.9,2.35940044]
[1735963465909,0.69025,3591.2,3590.9,2.35940044]
[1735963466909,2.87488168,3591.2,3590.9,2.35940044]
[1735963467216,0.2227,3591.1,3590.9,2.35940044]
[1735963467412,0.2227,3591.1,3591.0,0.27857]
[1735963467608,0.2227,3591.1,3590.9,1.35157]
[1735963467809,0.2227,3591.1,3590.9,2.35940044]
[1735963472909,0.2227,3591.1,3590.9,2.08083044]
[1735963473116,0.2227,3591.1,3590.9,1.00783044]
[1735963473415,0.2227,3591.1,3590.8,3.6598]
[1735963473624,0.2227,3591.1,3590.8,4.21563044]
[1735963473814,0.27857,3591.0,3590.8,4.21563044]
[1735963474619,0.2227,3591.1,3590.7,5.38711659]
[1735963474822,0.2227,3591.1,3590.9,1.00783044]
[1735963475120,0.50126,3591.1,3590.9,1.00783044]
[1735963475421,0.50126,3591.1,3590.8,1.00783044]
[1735963475615,1.00783044,3591.0,3590.7,1.073]
[1735963475821,1.28641044,3590.8,3590.7,5.45228615]
[1735963476022,1.28641044,3590.8,3590.7,4.37928615]
[1735963476224,0.27858,3590.8,3590.7,4.37928615]
[1735963477414,0.2786,3590.6,3590.5,1.00783044]
[1735963482423,0.2786,3590.6,3590.3,1.76652]
[1735963482720,0.27861,3590.5,3590.4,1.00783044]
[1735963484220,0.30901,3590.5,3590.4,1.00783044]
[1735963485221,0.0304,3590.5,3590.4,1.00783044]
[1735963488021,0.0304,3590.5,3589.7,6.56027446]
[1735963488022,4.923,3590.4,3589.7,6.56027446]
[1735963488230,3.48646,3589.8,3589.7,6.24011784]
[1735963488716,8.93066,3589.8,3589.7,6.24011784]
[1735963490425,3.93066,3589.8,3589.7,6.24011784]
[1735963490628,3.93066,3589.8,3589.7,5.68124784]
[1735963490820,0.27872,3589.0,3588.9,0.865]
[1735963495123,0.27872,3589.0,3588.9,0.4201]
[1735963497927,0.71442,3589.0,3588.9,0.4201]
[1735963499328,0.27874,3588.7,3588.6,1.4934]
[1735963500030,0.69673,3589.5,3588.6,1.4934]
[1735963500031,3.2078,3589.7,3589.0,0.00228209]
[1735963500331,0.27869,3589.4,3589.1,2.08183044]
[1735963500533,0.27869,3589.4,3589.2,0.8581]
[1735963500731,0.27869,3589.4,3589.2,1.2857]
[1735963501530,1.28652044,3589.4,3589.2,1.2857]
[1735963501733,0.2787,3589.3,3589.2,1.2857]
[1735963503944,1.00783044,3589.4,3589.2,1.2857]
[1735963504233,1.28652044,3589.4,3589.2,1.2857]
[1735963504439,1.00783044,3589.4,3589.2,1.2857]
[1735963504730,3.2078,3589.7,3589.3,1.00783044]
[1735963504933,0.27868,3589.6,3589.5,1.00783044]
[1735963505237,0.27868,3589.6,3589.3,1.28653044]
[1735963505437,0.27868,3589.5,3589.2,1.2857]
[1735963505634,1.03823044,3589.6,3589.2,1.2857]
[1735963506132,0.2787,3589.3,3589.2,1.2857]
[1735963506732,0.2787,3589.3,3589.2,2.3597]
[1735963507435,0.27871,3589.1,3589.0,1.07628209]
[1735963507630,1.00783044,3589.4,3589.0,1.07628209]
[1735963507835,0.27871,3589.2,3589.0,2.08411253]
[1735963508343,0.27871,3589.1,3589.0,2.08411253]
[1735963509037,1.03823044,3589.6,3589.0,2.08411253]
[1735963509238,0.0304,3589.6,3589.2,1.00783044]
[1735963509437,0.27869,3589.4,3589.2,1.00783044]
[1735963510342,0.0304,3589.6,3589.2,1.00783044]
[1735963510537,0.27869,3589.4,3589.1,0.27871]
[1735963511237,0.27869,3589.4,3589.0,2.08411253]
[1735963511238,0.2787,3589.3,3589.0,2.36283253]
[1735963513140,0.27869,3589.4,3589.0,2.36283253]
[1735963513338,0.27869,3589.4,3589.1,0.27871]
[1735963513546,0.27869,3589.5,3589.0,2.08411253]
[1735963513842,0.27869,3589.5,3589.2,1.00783044]
[1735963514143,1.03823044,3589.6,3589.0,2.08411253]
[1735963514344,0.2228,3589.5,3589.3,0.27869]
[1735963514637,0.2228,3589.5,3589.2,1.00783044]
[1735963514837,0.2228,3589.5,3589.4,1.28652044]